fUSD/lending_fUSD_20260528
["ID","MTS","AMOUNT","RATE_DAILY","PERIOD"]
[423193711,1779917610000,-200.0,0.00011644,2]
[423193712,1779917621000,-150.0,0.00011765,2]
[423193713,1779917673000,-285.0,0.00012378,2]
[423193714,1779917726000,-323.2955,0.00012277,2]
[423193715,1779917779000,-248.50846616,0.00012279,2]
[423193716,1779917832000,-654.87971684,0.0001228,2]
[423193717,1779918021000,-150.0,0.00011912,2]
[423193718,1779918031000,-524.87187294,0.0001228,2]
[423193721,1779918142000,168.93400324,0.0001254,7]
[423193722,1779918319000,-150.0,0.0001191,2]
[423193723,1779918405000,-152.17736132,0.00012032,2]
[423193724,1779918405000,-3.89718281,0.00012132,2]
[423193725,1779918436000,-646.32404978,0.00012132,2]
[423193726,1779918452000,-256.80971004,0.00012132,2]
[423193727,1779918487000,-316.918357,0.00012071,2]
[423193734,1779918607000,195.16,0.00011953,2]
[423193735,1779918608000,0.84,0.00011953,2]
[423193739,1779918632000,-210.28176571,0.00011953,2]
[423193738,1779918632000,-435.273289,0.0001194,2]
[423193740,1779918632000,-1125.68823429,0.00011953,2]
[423193741,1779918632000,-151.0,0.00012,2]
[423193743,1779918632000,-208.74386064,0.00012132,2]
[423193742,1779918632000,-314.56790507,0.00012101,2]
[423193745,1779918632000,-154.922,0.00012132,2]
[423193744,1779918632000,-717.06219673,0.00012132,2]
[423193749,1779918632000,-41.58184812,0.00012164,2]
[423193746,1779918632000,-2000.0,0.00012164,2]
[423193754,1779918632000,-362.9291824,0.00012178,2]
[423193747,1779918632000,-1182.69178557,0.00012164,2]
[423193750,1779918632000,-272.2166,0.00012178,2]
[423193758,1779918632000,-1153.22863606,0.00012178,2]
[423193755,1779918632000,-300.0,0.00012178,2]
[423193756,1779918632000,-300.0,0.00012178,2]
[423193757,1779918632000,-46.77136394,0.00012178,2]
[423193759,1779918632000,-1081.71136394,0.00012179,2]
[423193752,1779918632000,-524.06279414,0.00012178,2]
[423193751,1779918632000,-500.0,0.00012178,2]
[423193748,1779918632000,-2059.65403375,0.00012164,2]
[423193753,1779918632000,-282.2206114,0.00012178,2]
[423193770,1779918635000,-500.0,0.00012178,2]
[423193774,1779918635000,-349.47697204,0.00012178,2]
[423193777,1779918635000,-500.0,0.00012178,2]
[423193775,1779918635000,-500.0,0.00012178,2]
[423193773,1779918635000,-236.30636367,0.00012178,2]
[423193771,1779918635000,-283.83875961,0.00012178,2]
[423193772,1779918635000,-263.69363633,0.00012178,2]
[423193769,1779918635000,-500.0,0.00012178,2]
[423193767,1779918635000,-261.415,0.00012178,2]
[423193765,1779918635000,-500.0,0.00012178,2]
[423193764,1779918635000,-500.0,0.00012178,2]
[423193766,1779918635000,-203.55739594,0.00012178,2]
[423193776,1779918635000,-500.0,0.00012178,2]
[423193763,1779918635000,-485.33636406,0.00012178,2]
[423193761,1779918635000,-500.0,0.00012178,2]
[423193762,1779918635000,-14.66363594,0.00012178,2]
[423193760,1779918635000,-500.0,0.00012178,2]
[423193768,1779918635000,-35.02760406,0.00012178,2]
[423193778,1779918635000,-500.0,0.00012178,2]
[423193781,1779918635000,-500.0,0.00012178,2]
[423193780,1779918635000,-500.0,0.00012178,2]
[423193810,1779918635000,-276242.9560914,0.00012179,2]
[423193805,1779918635000,-500.0,0.00012178,2]
[423193807,1779918635000,-98632.82172085,0.00012179,2]
[423193803,1779918635000,-506.53329483,0.00012178,2]
[423193801,1779918635000,-500.0,0.00012178,2]
[423193799,1779918635000,-500.0,0.00012178,2]
[423193779,1779918635000,-500.0,0.00012178,2]
[423193796,1779918635000,-500.0,0.00012178,2]
[423193798,1779918635000,-500.0,0.00012178,2]
[423193790,1779918635000,-500.0,0.00012178,2]
[423193783,1779918635000,-500.0,0.00012178,2]
[423193792,1779918635000,-500.0,0.00012178,2]
[423193788,1779918635000,-500.0,0.00012178,2]
[423193786,1779918635000,-500.0,0.00012178,2]
[423193784,1779918635000,-500.0,0.00012178,2]
[423193782,1779918635000,-500.0,0.00012178,2]
[423193785,1779918635000,-500.0,0.00012178,2]
[423193794,1779918635000,-500.0,0.00012178,2]
[423193931,1779918638000,-24293.58140421,0.00012179,2]
[423193929,1779918638000,-3313.65792298,0.00012179,2]
[423193928,1779918638000,-1538.78475553,0.00012179,2]
[423193930,1779918638000,-8460.0,0.00012179,2]
[423193932,1779918638000,-22423.87,0.00012179,2]
[423193940,1779918638000,-24971.45634726,0.00012179,2]
[423193935,1779918638000,-10547.28943051,0.00012179,2]
[423193938,1779918638000,-8127.97023274,0.00012179,2]
[423193937,1779918638000,-3411.51468146,0.00012179,2]
[423193939,1779918638000,-2136.29999999,0.00012179,2]
[423193936,1779918638000,-3376.88315535,0.00012179,2]
[423193933,1779918638000,-6866.47058603,0.00012179,2]
[423194146,1779918640000,-8862.9485675,0.00012179,2]
[423194140,1779918640000,-435.5076129,0.00012179,2]
[423194138,1779918640000,-7494.99999999,0.00012179,2]
[423194150,1779918640000,-8943.78386462,0.00012179,2]
[423194153,1779918640000,-9077.54866152,0.00012179,2]
[423194184,1779918640000,-2137.39999991,0.00012179,2]
[423194148,1779918640000,-8947.21879473,0.00012179,2]
[423194220,1779918641000,-280.570408,0.00012179,2]
[423194215,1779918641000,-296.96488502,0.00012179,2]
[423194216,1779918641000,-3878.19985867,0.00012179,2]
[423194537,1779918643000,-6626.0,0.00012179,2]
[423194544,1779918643000,-17.34161601,0.00012179,2]
[423194551,1779918643000,-9671.27111997,0.00012179,2]
[423194548,1779918643000,-187.93843808,0.00012179,2]
[423194555,1779918643000,-603.12406464,0.00012179,2]
[423194553,1779918643000,-8417.4580471,0.00012179,2]
[423194565,1779918643000,-2278.1781833,0.00012179,2]
[423194897,1779918646000,-11215.28711397,0.00012179,2]
[423194896,1779918646000,-373.6,0.00012179,2]
[423194894,1779918646000,-1443.03583551,0.00012179,2]
[423194895,1779918646000,-10591.55587683,0.00012179,2]
[423194899,1779918647000,-262.43336799,0.00012179,2]
[423194898,1779918647000,-204.1630821,0.00012179,2]
[423194928,1779918684000,-323.2955,0.00012032,2]
[423194929,1779918749000,230.62683816,0.0001254,7]
[423194933,1779918770000,152.71,6.422e-05,2]
[423194932,1779918770000,152.71,6.084e-05,2]
[423194931,1779918770000,124.17063294,5.746e-05,2]
[423194930,1779918770000,28.53936706,5.746e-05,2]
[423194934,1779918771000,152.71,6.76e-05,2]
[423194935,1779918771000,152.71,7.098e-05,2]
[423194938,1779918771000,152.71,8.112e-05,2]
[423194937,1779918771000,152.71,7.774e-05,2]
[423194936,1779918771000,152.71,7.436e-05,2]
[423194942,1779918772000,152.71,9.464e-05,2]
[423194941,1779918772000,152.71,9.126e-05,2]
[423194940,1779918772000,152.71,8.788e-05,2]
[423194939,1779918772000,152.71,8.45e-05,2]
[423194943,1779918773000,152.71,9.802e-05,2]
[423194945,1779918872000,150.0,9.836e-05,2]
[423194948,1779918966000,-213.82,0.00027731,30]
[423194949,1779918966000,-157.12,0.00027778,30]
[423194947,1779918966000,-185.56,0.00027702,30]
[423194961,1779918967000,-156.0,0.00030685,30]
[423194967,1779918967000,-179.4060586,0.00032,120]
[423194966,1779918967000,-156.0,0.00031686,30]
[423194968,1779918967000,-156.0,0.00032685,30]
[423194965,1779918967000,-156.0,0.00031685,30]
[423194963,1779918967000,-164.44,0.00030914,120]
[423194964,1779918967000,-162.0,0.00031685,30]
[423194962,1779918967000,-156.0,0.00030686,30]
[423194960,1779918967000,-154.0,0.00030685,30]
[423194957,1779918967000,-156.0,0.00029686,30]
[423194959,1779918967000,-171.0,0.00030685,30]
[423194954,1779918967000,-165.0,0.00029685,30]
[423194956,1779918967000,-156.0,0.00029685,30]
[423194969,1779918967000,-156.0,0.00032686,30]
[423194955,1779918967000,-154.0,0.00029685,30]
[423194953,1779918967000,-157.0,0.00029685,30]
[423194952,1779918967000,-185.56,0.00029,30]
[423194950,1779918967000,-157.12,0.00028236,30]
[423194951,1779918967000,-157.12,0.00028694,30]
[423194958,1779918967000,-157.0,0.00030685,30]
[423194971,1779918967000,-156.0,0.00033685,30]
[423194987,1779918967000,-200.0,0.00034247,90]
[423194972,1779918967000,-156.0,0.00033686,30]
[423194970,1779918967000,-179.4060586,0.00033,120]
[423194990,1779918967000,-200.0,0.00034247,90]
[423194991,1779918967000,-200.0,0.00034247,90]
[423194988,1779918967000,-200.0,0.00034247,90]
[423194989,1779918967000,-200.0,0.00034247,90]
[423194986,1779918967000,-200.0,0.00034247,90]
[423194985,1779918967000,-200.0,0.00034247,90]
[423194984,1779918967000,-200.0,0.00034247,90]
[423194983,1779918967000,-200.0,0.00034247,90]
[423194992,1779918967000,-288.082047,0.00034247,90]
[423194981,1779918967000,-200.0,0.00034247,90]
[423194982,1779918967000,-200.0,0.00034247,90]
[423194976,1779918967000,-200.0,0.00034247,90]
[423194974,1779918967000,-200.0,0.00034247,90]
[423194975,1779918967000,-200.0,0.00034247,90]
[423194973,1779918967000,-179.4060586,0.000339,120]
[423194978,1779918967000,-200.0,0.00034247,90]
[423194979,1779918967000,-200.0,0.00034247,90]
[423194980,1779918967000,-200.0,0.00034247,90]
[423194977,1779918967000,-200.0,0.00034247,90]
[423195002,1779918968000,-151.0,0.00036153,30]
[423195008,1779918968000,-150.0,0.00037401,30]
[423195007,1779918968000,-167.27229746,0.000373,30]
[423195005,1779918968000,-170.0,0.000364,30]
[423195006,1779918968000,-1466.27,0.00036632,45]
[423195004,1779918968000,-500.0,0.00036342,120]
[423195003,1779918968000,-455.0,0.00036342,120]
[423195000,1779918968000,-179.4060586,0.00036,120]
[423194997,1779918968000,-150.0,0.00035433,30]
[423194999,1779918968000,-156.0,0.00035686,30]
[423194998,1779918968000,-156.0,0.00035685,30]
[423194996,1779918968000,-150.0,0.000353,30]
[423194994,1779918968000,-156.0,0.00034686,30]
[423194995,1779918968000,-179.4060586,0.00035,120]
[423194993,1779918968000,-156.0,0.00034685,30]
[423195010,1779918968000,-1100.0,0.00037728,60]
[423195001,1779918968000,-164.44,0.00036067,120]
[423195009,1779918968000,-170.0,0.000376,30]
[423195025,1779918968000,-152.978847,0.00038356,30]
[423195013,1779918968000,-151.0,0.00038125,30]
[423195027,1779918968000,-152.978847,0.00038356,30]
[423195030,1779918968000,-152.978847,0.00038356,30]
[423195028,1779918968000,-152.978847,0.00038356,30]
[423195029,1779918968000,-152.978847,0.00038356,30]
[423195026,1779918968000,-152.978847,0.00038356,30]
[423195024,1779918968000,-152.978847,0.00038356,30]
[423195021,1779918968000,-151.0,0.00038356,30]
[423195022,1779918968000,-152.978847,0.00038356,30]
[423195011,1779918968000,-500.0,0.00037728,60]
[423195020,1779918968000,-151.0,0.00038356,30]
[423195017,1779918968000,-151.0,0.00038356,30]
[423195018,1779918968000,-151.0,0.00038356,30]
[423195016,1779918968000,-151.0,0.00038356,30]
[423195019,1779918968000,-151.0,0.00038356,30]
[423195015,1779918968000,-1519.58,0.00038276,60]
[423195014,1779918968000,-302.03805812,0.0003822,120]
[423195012,1779918968000,-600.0,0.00037728,60]
[423195023,1779918968000,-152.978847,0.00038356,30]
[423195043,1779918969000,-1404.77,0.00038493,30]
[423195045,1779918969000,-1100.0,0.0003855,60]
[423195048,1779918969000,-2000.0,0.0003889,107]
[423195044,1779918969000,-1000.0,0.00038542,120]
[423195046,1779918969000,-600.0,0.0003855,60]
[423195042,1779918969000,-1549.0,0.00038356,30]
[423195047,1779918969000,-170.0,0.000388,30]
[423195041,1779918969000,-152.97884338,0.00038356,30]
[423195036,1779918969000,-152.978847,0.00038356,30]
[423195039,1779918969000,-152.978847,0.00038356,30]
[423195038,1779918969000,-152.978847,0.00038356,30]
[423195037,1779918969000,-152.978847,0.00038356,30]
[423195035,1779918969000,-152.978847,0.00038356,30]
[423195033,1779918969000,-152.978847,0.00038356,30]
[423195034,1779918969000,-152.978847,0.00038356,30]
[423195032,1779918969000,-152.978847,0.00038356,30]
[423195050,1779918969000,-2000.0,0.0003889,107]
[423195040,1779918969000,-152.978847,0.00038356,30]
[423195051,1779918969000,-2000.0,0.0003889,107]
[423195031,1779918969000,-152.978847,0.00038356,30]
[423195052,1779918969000,-2000.0,0.0003889,107]
[423195071,1779918969000,-666.0,0.0003937,30]
[423195068,1779918969000,-213.68,0.00039325,120]
[423195069,1779918969000,-706.40305457,0.00039357,30]
[423195066,1779918969000,-30048.7749668,0.000393,120]
[423195064,1779918969000,-1000.0,0.00039299,120]
[423195065,1779918969000,-179.20873776,0.00039299,120]
[423195067,1779918969000,-150.0,0.00039315,30]
[423195062,1779918969000,-151.0,0.00039255,30]
[423195063,1779918969000,-330.0,0.0003926,59]
[423195070,1779918969000,-666.0,0.0003937,30]
[423195060,1779918969000,-2027.86,0.000392,120]
[423195061,1779918969000,-1441.78,0.000392,120]
[423195054,1779918969000,-604.09,0.00038904,30]
[423195055,1779918969000,-270.0,0.00038913,30]
[423195053,1779918969000,-2000.0,0.0003889,107]
[423195049,1779918969000,-2000.0,0.0003889,107]
[423195058,1779918969000,-600.0,0.000392,30]
[423195059,1779918969000,-1254.58,0.000392,120]
[423195057,1779918969000,-253.15,0.00039173,58]
[423195056,1779918969000,-1000.0,0.00039097,60]
[423195087,1779918970000,-156.0,0.00039373,120]
[423195084,1779918970000,-1100.0,0.00039372,60]
[423195086,1779918970000,-500.0,0.00039372,60]
[423195085,1779918970000,-600.0,0.00039372,60]
[423195083,1779918970000,-156.0,0.00039371,120]
[423195080,1779918970000,-154.0,0.00039371,120]
[423195082,1779918970000,-155.0,0.00039371,120]
[423195079,1779918970000,-155.0,0.00039371,120]
[423195078,1779918970000,-155.0,0.00039371,120]
[423195077,1779918970000,-165.0,0.00039371,120]
[423195075,1779918970000,-159.0,0.00039371,120]
[423195073,1779918970000,-154.0,0.00039371,120]
[423195072,1779918970000,-150.0,0.0003937,120]
[423195074,1779918970000,-157.0,0.00039371,120]
[423195089,1779918970000,-151.0,0.00039373,30]
[423195081,1779918970000,-151.0,0.00039371,120]
[423195076,1779918970000,-152.0,0.00039371,120]
[423195091,1779918970000,-822.49908156,0.00039373,120]
[423195090,1779918970000,-299.91848,0.00039373,30]
[423195088,1779918970000,-249.0,0.00039373,120]
[423195107,1779918970000,-836.0,0.00039462,30]
[423195108,1779918970000,-346.0,0.00039462,30]
[423195103,1779918970000,-411.0,0.00039462,30]
[423195105,1779918970000,-836.0,0.00039462,30]
[423195104,1779918970000,-836.0,0.00039462,30]
[423195106,1779918970000,-836.0,0.00039462,30]
[423195099,1779918970000,-250.0,0.000394,30]
[423195102,1779918970000,-1027.0,0.00039462,30]
[423195100,1779918970000,-161.3,0.00039437,120]
[423195098,1779918970000,-159.64,0.000394,30]
[423195097,1779918970000,-3163.38156778,0.000394,35]
[423195096,1779918970000,-199017.25754422,0.000394,35]
[423195095,1779918970000,-632168.12353889,0.000394,30]
[423195093,1779918970000,-666.0,0.00039399,30]
[423195094,1779918970000,-267.92294629,0.00039399,30]
[423195101,1779918970000,-470.81359689,0.00039462,30]
[423195092,1779918970000,-161.3,0.00039387,120]
[423195119,1779918971000,-1000.0,0.00039642,120]
[423195122,1779918971000,-161.3,0.00039687,120]
[423195126,1779918971000,-151.0,0.000397,120]
[423195127,1779918971000,-5536.0,0.000397,117]
[423195123,1779918971000,-150.0,0.00039696,120]
[423195124,1779918971000,-666.0,0.00039699,30]
[423195121,1779918971000,-314.35,0.00039686,120]
[423195125,1779918971000,-250000.0,0.000397,30]
[423195118,1779918971000,-161.3,0.00039637,120]
[423195111,1779918971000,-161.3,0.00039487,120]
[423195117,1779918971000,-314.35,0.00039636,120]
[423195116,1779918971000,-161.3,0.00039587,120]
[423195115,1779918971000,-250.46341063,0.00039559,120]
[423195114,1779918971000,-161.3,0.00039537,120]
[423195112,1779918971000,-2000.0,0.000395,75]
[423195128,1779918971000,-666.0,0.00039725,30]
[423195110,1779918971000,-666.0,0.0003948,30]
[423195113,1779918971000,-4000.0,0.000395,100]
[423195109,1779918971000,-836.0,0.00039462,30]
[423195120,1779918971000,-2672.0,0.00039667,120]
[423195129,1779918971000,-666.0,0.00039725,30]
[423195147,1779918971000,-899.0,0.00039726,120]
[423195131,1779918971000,-899.0,0.00039726,120]
[423195150,1779918971000,-899.0,0.00039726,120]
[423195149,1779918971000,-899.0,0.00039726,120]
[423195151,1779918971000,-899.0,0.00039726,120]
[423195144,1779918971000,-899.0,0.00039726,120]
[423195145,1779918971000,-899.0,0.00039726,120]
[423195148,1779918971000,-899.0,0.00039726,120]
[423195146,1779918971000,-899.0,0.00039726,120]
[423195143,1779918971000,-899.0,0.00039726,120]
[423195142,1779918971000,-899.0,0.00039726,120]
[423195130,1779918971000,-899.0,0.00039726,120]
[423195140,1779918971000,-899.0,0.00039726,120]
[423195139,1779918971000,-899.0,0.00039726,120]
[423195136,1779918971000,-899.0,0.00039726,120]
[423195137,1779918971000,-899.0,0.00039726,120]
[423195138,1779918971000,-899.0,0.00039726,120]
[423195135,1779918971000,-899.0,0.00039726,120]
[423195132,1779918971000,-899.0,0.00039726,120]
[423195134,1779918971000,-899.0,0.00039726,120]
[423195133,1779918971000,-899.0,0.00039726,120]
[423195141,1779918971000,-899.0,0.00039726,120]
[423195162,1779918972000,-300.0,0.00039726,120]
[423195167,1779918972000,-300.0,0.00039726,120]
[423195169,1779918972000,-300.0,0.00039726,120]
[423195171,1779918972000,-300.0,0.00039726,120]
[423195166,1779918972000,-300.0,0.00039726,120]
[423195168,1779918972000,-300.0,0.00039726,120]
[423195164,1779918972000,-300.0,0.00039726,120]
[423195165,1779918972000,-300.0,0.00039726,120]
[423195163,1779918972000,-300.0,0.00039726,120]
[423195159,1779918972000,-300.0,0.00039726,120]
[423195160,1779918972000,-300.0,0.00039726,120]
[423195156,1779918972000,-300.0,0.00039726,120]
[423195157,1779918972000,-300.0,0.00039726,120]
[423195158,1779918972000,-300.0,0.00039726,120]
[423195155,1779918972000,-300.0,0.00039726,120]
[423195153,1779918972000,-920.18353042,0.00039726,120]
[423195154,1779918972000,-300.0,0.00039726,120]
[423195172,1779918972000,-300.0,0.00039726,120]
[423195161,1779918972000,-300.0,0.00039726,120]
[423195152,1779918972000,-899.0,0.00039726,120]
[423195173,1779918972000,-300.0,0.00039726,120]
[423195175,1779918972000,-300.0,0.00039726,120]
[423195170,1779918972000,-300.0,0.00039726,120]
[423195191,1779918972000,-300.0,0.00039726,120]
[423195192,1779918972000,-300.0,0.00039726,120]
[423195189,1779918972000,-300.0,0.00039726,120]
[423195190,1779918972000,-300.0,0.00039726,120]
[423195188,1779918972000,-300.0,0.00039726,120]
[423195187,1779918972000,-300.0,0.00039726,120]
[423195186,1779918972000,-300.0,0.00039726,120]
[423195185,1779918972000,-300.0,0.00039726,120]
[423195193,1779918972000,-300.0,0.00039726,120]
[423195182,1779918972000,-300.0,0.00039726,120]
[423195184,1779918972000,-300.0,0.00039726,120]
[423195174,1779918972000,-300.0,0.00039726,120]
[423195177,1779918972000,-300.0,0.00039726,120]
[423195179,1779918972000,-300.0,0.00039726,120]
[423195176,1779918972000,-300.0,0.00039726,120]
[423195181,1779918972000,-300.0,0.00039726,120]
[423195180,1779918972000,-300.0,0.00039726,120]
[423195183,1779918972000,-300.0,0.00039726,120]
[423195178,1779918972000,-300.0,0.00039726,120]
[423195202,1779918973000,-300.0,0.00039726,120]
[423195210,1779918973000,-500.0,0.00039755,120]
[423195209,1779918973000,-262.63931446,0.00039744,120]
[423195207,1779918973000,-161.3,0.00039737,120]
[423195208,1779918973000,-2117.85961796,0.00039742,60]
[423195205,1779918973000,-2000.0,0.00039726,120]
[423195204,1779918973000,-50000.0,0.00039726,30]
[423195203,1779918973000,-212.77,0.00039726,60]
[423195199,1779918973000,-300.0,0.00039726,120]
[423195201,1779918973000,-300.0,0.00039726,120]
[423195200,1779918973000,-300.0,0.00039726,120]
[423195198,1779918973000,-300.0,0.00039726,120]
[423195197,1779918973000,-300.0,0.00039726,120]
[423195195,1779918973000,-300.0,0.00039726,120]
[423195196,1779918973000,-300.0,0.00039726,120]
[423195194,1779918973000,-300.0,0.00039726,120]
[423195211,1779918973000,-151.1,0.00039758,120]
[423195206,1779918973000,-314.35,0.00039736,120]
[423195214,1779918973000,-161.3,0.00039787,120]
[423195231,1779918973000,-350.0,0.00039885,120]
[423195213,1779918973000,-314.35,0.00039786,120]
[423195212,1779918973000,-346.43998232,0.00039781,120]
[423195230,1779918973000,-350.0,0.00039885,120]
[423195232,1779918973000,-350.0,0.00039885,120]
[423195228,1779918973000,-151.1,0.00039858,120]
[423195229,1779918973000,-150.0,0.00039863,30]
[423195227,1779918973000,-529.56,0.00039855,120]
[423195226,1779918973000,-161.3,0.00039837,120]
[423195223,1779918973000,-151.1,0.00039808,120]
[423195225,1779918973000,-314.35,0.00039836,120]
[423195233,1779918973000,-350.0,0.00039885,120]
[423195221,1779918973000,-250.0,0.000398,30]
[423195224,1779918973000,-745.94169182,0.00039818,106]
[423195217,1779918973000,-151.85,0.000398,120]
[423195215,1779918973000,-4980.42352312,0.000398,120]
[423195216,1779918973000,-422.73,0.000398,120]
[423195220,1779918973000,-230.01,0.000398,120]
[423195222,1779918973000,-529.56,0.00039805,120]
[423195219,1779918973000,-410.44,0.000398,120]
[423195218,1779918973000,-676.21,0.000398,120]
[423195251,1779918974000,-666.0,0.00039999,30]
[423195243,1779918974000,-151.1,0.00039908,120]
[423195249,1779918974000,-314.35,0.00039986,120]
[423195248,1779918974000,-53349.89825817,0.0003998,30]
[423195247,1779918974000,-666.0,0.00039979,30]
[423195246,1779918974000,-151.1,0.00039958,120]
[423195244,1779918974000,-314.35,0.00039936,120]
[423195245,1779918974000,-161.3,0.00039937,120]
[423195240,1779918974000,-194.0,0.000399,120]
[423195242,1779918974000,-529.64844396,0.00039905,120]
[423195239,1779918974000,-391.2,0.000399,120]
[423195237,1779918974000,-150.0,0.00039892,120]
[423195236,1779918974000,-161.3,0.00039887,120]
[423195235,1779918974000,-314.35,0.00039886,120]
[423195234,1779918974000,-190.04342462,0.00039885,120]
[423195250,1779918974000,-161.3,0.00039987,120]
[423195241,1779918974000,-869.05461363,0.000399,30]
[423195252,1779918974000,-3981.26889722,0.00039999,120]
[423195238,1779918974000,-734.90094021,0.000399,120]
[423195253,1779918974000,-500.0,0.00039999,31]
[423195254,1779918974000,-500.0,0.00039999,31]
[423195270,1779918974000,-500.0,0.00039999,31]
[423195267,1779918974000,-500.0,0.00039999,31]
[423195269,1779918974000,-526.22197896,0.00039999,31]
[423195268,1779918974000,-500.0,0.00039999,31]
[423195266,1779918974000,-500.0,0.00039999,31]
[423195264,1779918974000,-460.90614572,0.00039999,31]
[423195265,1779918974000,-500.0,0.00039999,31]
[423195271,1779918974000,-150.0,0.0004,120]
[423195262,1779918974000,-500.0,0.00039999,31]
[423195261,1779918974000,-500.0,0.00039999,31]
[423195260,1779918974000,-500.0,0.00039999,31]
[423195258,1779918974000,-355.96923042,0.00039999,31]
[423195259,1779918974000,-460.96033194,0.00039999,31]
[423195256,1779918974000,-419.62276169,0.00039999,31]
[423195257,1779918974000,-500.0,0.00039999,31]
[423195263,1779918974000,-500.0,0.00039999,31]
[423195255,1779918974000,-628.97709142,0.00039999,31]
[423195278,1779918975000,-17962.64300881,0.0004,120]
[423195277,1779918975000,-290.92,0.0004,120]
[423195276,1779918975000,-1413.0,0.0004,120]
[423195272,1779918975000,-2715.48158216,0.0004,120]
[423195273,1779918975000,-1000.0,0.0004,120]
[423195280,1779918975000,-941.24605821,0.0004,120]
[423195274,1779918975000,-1011.63274288,0.0004,120]
[423195279,1779918975000,-167.51818487,0.0004,120]
[423195275,1779918975000,-1010.17,0.0004,120]
[423195282,1779918975000,-4453.11320571,0.0004,120]
[423195283,1779918975000,-20000.0,0.0004,120]
[423195286,1779918975000,-1214.05444245,0.0004,120]
[423195284,1779918975000,-2942.0,0.0004,120]
[423195285,1779918975000,-14062.22,0.0004,60]
[423195287,1779918975000,-422.41,0.0004,120]
[423195288,1779918975000,-100000.0,0.0004,120]
[423195289,1779918975000,-3449235.1328871,0.0004,120]
[423195281,1779918975000,-6032.6215524,0.0004,120]
[423195293,1779918996000,-4998890.84021894,0.0004,120]
[423195291,1779918996000,-500.0,0.00039999,31]
[423195292,1779918996000,-423.59978106,0.00039999,31]
[423195290,1779918996000,-185.56,0.00028016,30]
[423195294,1779919009000,-185.56,0.00028011,30]
[423195296,1779919009000,-1068.11,0.00039998,30]
[423195298,1779919009000,-1107.63007,0.00039998,30]
[423195297,1779919009000,-1500.0,0.00039998,30]
[423195295,1779919009000,-1030.0,0.00039998,30]
[423195311,1779919010000,-1934.38338736,0.00039998,30]
[423195317,1779919010000,-151.0,0.00039999,120]
[423195316,1779919010000,-311.1,0.00039999,120]
[423195315,1779919010000,-300.0,0.00039999,120]
[423195314,1779919010000,-223.42620592,0.00039998,30]
[423195313,1779919010000,-2005.9555727,0.00039998,30]
[423195310,1779919010000,-1377.42282658,0.00039998,30]
[423195309,1779919010000,-1865.36488656,0.00039998,30]
[423195312,1779919010000,-1428.38747117,0.00039998,30]
[423195300,1779919010000,-1148.61238259,0.00039998,30]
[423195308,1779919010000,-1328.27659266,0.00039998,30]
[423195307,1779919010000,-1798.80895522,0.00039998,30]
[423195303,1779919010000,-1672.7364795,0.00039998,30]
[423195301,1779919010000,-1613.0535,0.00039998,30]
[423195304,1779919010000,-1235.18214925,0.00039998,30]
[423195305,1779919010000,-1734.62772924,0.00039998,30]
[423195302,1779919010000,-1191.11104074,0.00039998,30]
[423195299,1779919010000,-1555.5,0.00039998,30]